[Event "Late-Titled-Tuesday-Blitz-February-27-2024"]
[Site "Chess.com"]
[Date "2024.02.27"]
[Round "10"]
[White "Zhigalko_Sergei"]
[Black "MITerryble"]
[Result "0-1"]
[WhiteElo "2904"]
[BlackElo "3030"]
[TimeControl "180+1"]
[EndTime "15:56:24 PST"]
[Termination "MITerryble won on time"]

1. e4 {[%clk 0:03:00.9]} 1... g6 {[%clk 0:03:00.1]} 2. d4 {[%clk 0:03:01.3]}
2... Bg7 {[%clk 0:03:00.7]} 3. Nc3 {[%clk 0:02:55.9]} 3... c6 {[%clk 0:03:00.9]}
4. Nf3 {[%clk 0:02:50.5]} 4... d5 {[%clk 0:03:00.2]} 5. Bd3 {[%clk 0:02:51]}
5... Nh6 {[%clk 0:03:00]} 6. O-O {[%clk 0:02:48.2]} 6... f6 {[%clk 0:02:57]} 7.
Re1 {[%clk 0:02:42.8]} 7... Nf7 {[%clk 0:02:52.9]} 8. Qe2 {[%clk 0:02:32]} 8...
e6 {[%clk 0:02:53]} 9. Bf4 {[%clk 0:02:19.9]} 9... O-O {[%clk 0:02:52.6]} 10.
Bg3 {[%clk 0:02:19.6]} 10... Nd7 {[%clk 0:02:40.6]} 11. exd5 {[%clk 0:02:11.4]}
11... exd5 {[%clk 0:02:41.5]} 12. Qe7 {[%clk 0:01:58.3]} 12... Nb6 {[%clk
0:02:29.9]} 13. h3 {[%clk 0:01:48.6]} 13... Bd7 {[%clk 0:02:13.4]} 14. a4 {[%clk
0:01:44.8]} 14... Qxe7 {[%clk 0:02:05]} 15. Rxe7 {[%clk 0:01:45.3]} 15... Rfe8
{[%clk 0:02:05.2]} 16. Rxe8+ {[%clk 0:01:38.5]} 16... Bxe8 {[%clk 0:01:43.5]}
17. a5 {[%clk 0:01:39.4]} 17... Nd7 {[%clk 0:01:43.9]} 18. Ne2 {[%clk
0:01:15.4]} 18... Bf8 {[%clk 0:01:33.2]} 19. c4 {[%clk 0:01:15.2]} 19... dxc4
{[%clk 0:01:30.1]} 20. Bxc4 {[%clk 0:01:16.1]} 20... Kh8 {[%clk 0:01:30.7]} 21.
Nc3 {[%clk 0:01:15.7]} 21... Nd6 {[%clk 0:01:27.2]} 22. Be6 {[%clk 0:01:10]}
22... Rd8 {[%clk 0:01:24]} 23. Re1 {[%clk 0:00:55.3]} 23... Kg7 {[%clk 0:01:22]}
24. Nd2 {[%clk 0:00:45.3]} 24... Bf7 {[%clk 0:01:19.8]} 25. Bxf7 {[%clk
0:00:17.2]} 25... Kxf7 {[%clk 0:01:20.7]} 26. Nb3 {[%clk 0:00:17.6]} 26... Nc4
{[%clk 0:01:15.9]} 27. Re2 {[%clk 0:00:14.5]} 27... Re8 {[%clk 0:01:16.1]} 28.
Ne4 {[%clk 0:00:11.1]} 28... Nxb2 {[%clk 0:00:45.3]} 29. Ng5+ {[%clk 0:00:11.2]}
29... fxg5 {[%clk 0:00:45.4]} 30. Rxb2 {[%clk 0:00:12.1]} 30... b6 {[%clk
0:00:42.7]} 31. axb6 {[%clk 0:00:06.7]} 31... axb6 {[%clk 0:00:43.6]} 32. Rc2
{[%clk 0:00:07.2]} 32... Re6 {[%clk 0:00:43.9]} 33. f3 {[%clk 0:00:07.1]} 33...
Nf6 {[%clk 0:00:30.9]} 34. Nd2 {[%clk 0:00:04]} 34... c5 {[%clk 0:00:27.4]} 35.
dxc5 {[%clk 0:00:03.3]} 35... Bxc5+ {[%clk 0:00:28.3]} 36. Kh2 {[%clk
0:00:02.4]} 36... Re2 {[%clk 0:00:26.9]} 37. Rb2 {[%clk 0:00:01.4]} 37... Bd4
{[%clk 0:00:25.8]} 38. Ra2 {[%clk 0:00:01.9]} 38... Ke6 {[%clk 0:00:23.2]} 39.
f4 {[%clk 0:00:01.4]} 39... g4 {[%clk 0:00:16.3]} 40. f5+ {[%clk 0:00:01.1]}
40... gxf5 {[%clk 0:00:16.3]} 41. Nb3 {[%clk 0:00:02]} 41... Bg1+ {[%clk
0:00:12.3]} 42. Kxg1 {[%clk 0:00:01.6]} 42... Rxa2 {[%clk 0:00:13.2]} 43. Nd4+
{[%clk 0:00:02.3]} 43... Kf7 {[%clk 0:00:12.8]} 44. Nxf5 {[%clk 0:00:03.2]}
44... gxh3 {[%clk 0:00:13.3]} 45. gxh3 {[%clk 0:00:03.3]} 45... Ne4 {[%clk
0:00:13.8]} 46. Bf4 {[%clk 0:00:03.1]} 46... b5 {[%clk 0:00:10.1]} 47. Nd4
{[%clk 0:00:01.3]} 47... b4 {[%clk 0:00:10.4]} 48. Be5 {[%clk 0:00:01.4]} 48...
Kg6 {[%clk 0:00:09]} 0-1

[Event "Late-Titled-Tuesday-Blitz-February-27-2024"]
[Site "Chess.com"]
[Date "2024.02.27"]
[Round "10"]
[White "morte-negra"]
[Black "Englishman_18"]
[Result "0-1"]
[WhiteElo "2055"]
[BlackElo "2313"]
[TimeControl "180+1"]
[EndTime "15:56:24 PST"]
[Termination "Englishman_18 won by resignation"]

1. e4 {[%clk 0:03:00.9]} 1... c5 {[%clk 0:02:58.9]} 2. Nf3 {[%clk 0:02:59.3]}
2... d6 {[%clk 0:02:59.1]} 3. d4 {[%clk 0:02:59.9]} 3... cxd4 {[%clk 0:03:00]}
4. Nxd4 {[%clk 0:03:00.3]} 4... Nf6 {[%clk 0:03:00.6]} 5. Nc3 {[%clk 0:03:00.7]}
5... a6 {[%clk 0:03:01]} 6. Rg1 {[%clk 0:03:00.1]} 6... Nc6 {[%clk 0:02:45.4]}
7. g4 {[%clk 0:02:57.2]} 7... g6 {[%clk 0:02:20.6]} 8. h3 {[%clk 0:02:53.7]}
8... Nxd4 {[%clk 0:02:13.1]} 9. Qxd4 {[%clk 0:02:49.8]} 9... Bg7 {[%clk
0:02:13.6]} 10. Be2 {[%clk 0:02:29.7]} 10... Qa5 {[%clk 0:01:26.1]} 11. Bd2
{[%clk 0:02:20.9]} 11... Qc5 {[%clk 0:01:14.6]} 12. Qd3 {[%clk 0:02:10.4]} 12...
b5 {[%clk 0:01:12.2]} 13. Be3 {[%clk 0:02:09.7]} 13... Qc7 {[%clk 0:01:09.6]}
14. O-O-O {[%clk 0:02:07.8]} 14... Bb7 {[%clk 0:01:09.1]} 15. f3 {[%clk
0:02:03.3]} 15... Rc8 {[%clk 0:01:02.5]} 16. Kb1 {[%clk 0:02:02.6]} 16... O-O
{[%clk 0:01:00.2]} 17. h4 {[%clk 0:02:01.2]} 17... Rfd8 {[%clk 0:00:37.3]} 18.
h5 {[%clk 0:01:55.6]} 18... d5 {[%clk 0:00:37]} 19. e5 {[%clk 0:01:50.5]} 19...
Qxe5 {[%clk 0:00:36]} 20. Bd4 {[%clk 0:01:50.7]} 20... Qc7 {[%clk 0:00:33.7]}
21. hxg6 {[%clk 0:01:33.9]} 21... hxg6 {[%clk 0:00:31.2]} 22. g5 {[%clk
0:01:27.1]} 22... Ne8 {[%clk 0:00:29.6]} 23. Bxg7 {[%clk 0:01:23.8]} 23... Nxg7
{[%clk 0:00:29.5]} 24. Rh1 {[%clk 0:01:23.3]} 24... d4 {[%clk 0:00:18.3]} 25.
Ne4 {[%clk 0:01:21.2]} 25... Bxe4 {[%clk 0:00:16.6]} 26. fxe4 {[%clk 0:01:20.6]}
26... f6 {[%clk 0:00:08]} 27. gxf6 {[%clk 0:01:13.9]} 27... exf6 {[%clk
0:00:07.8]} 28. Rc1 {[%clk 0:01:13.6]} 28... Qf4 {[%clk 0:00:06]} 29. Qh3 {[%clk
0:01:09.7]} 29... Kf7 {[%clk 0:00:05.4]} 30. Bd3 {[%clk 0:01:08.6]} 30... Qe3
{[%clk 0:00:04.5]} 31. Rce1 {[%clk 0:01:01.6]} 31... Qxh3 {[%clk 0:00:04.2]} 32.
Rxh3 {[%clk 0:01:00.9]} 32... Rh8 {[%clk 0:00:04.4]} 33. Reh1 {[%clk 0:00:59.8]}
33... Rxh3 {[%clk 0:00:04.1]} 34. Rxh3 {[%clk 0:00:59.6]} 34... Kg8 {[%clk
0:00:03.9]} 35. e5 {[%clk 0:00:52.2]} 35... f5 {[%clk 0:00:03.8]} 36. Rg3 {[%clk
0:00:49.3]} 36... Kf7 {[%clk 0:00:03.8]} 37. b3 {[%clk 0:00:44.6]} 37... Rh8
{[%clk 0:00:03.9]} 38. Kb2 {[%clk 0:00:43.7]} 38... Ne6 {[%clk 0:00:04.1]} 39.
a4 {[%clk 0:00:37.9]} 39... Nf4 {[%clk 0:00:03.6]} 40. axb5 {[%clk 0:00:27.2]}
40... Nxd3+ {[%clk 0:00:03.2]} 41. Rxd3 {[%clk 0:00:26.9]} 41... axb5 {[%clk
0:00:03.9]} 42. Rxd4 {[%clk 0:00:27.2]} 42... Ke6 {[%clk 0:00:03.9]} 43. Rb4
{[%clk 0:00:25.4]} 43... g5 {[%clk 0:00:02.3]} 44. Rxb5 {[%clk 0:00:25.7]} 44...
g4 {[%clk 0:00:02.6]} 45. Ra5 {[%clk 0:00:22.2]} 45... Rg8 {[%clk 0:00:02.4]}
46. Ra1 {[%clk 0:00:21.5]} 46... g3 {[%clk 0:00:02.4]} 47. Rg1 {[%clk
0:00:21.4]} 47... f4 {[%clk 0:00:02.8]} 48. Kc3 {[%clk 0:00:19.2]} 48... f3
{[%clk 0:00:03.2]} 49. Kd2 {[%clk 0:00:18.1]} 49... f2 {[%clk 0:00:03.5]} 50.
Rf1 {[%clk 0:00:18.1]} 50... g2 {[%clk 0:00:03.5]} 51. Rxf2 {[%clk 0:00:16.5]}
51... g1=Q {[%clk 0:00:03.7]} 52. Rf6+ {[%clk 0:00:17]} 52... Kxe5 {[%clk
0:00:03.5]} 0-1

[Event "Late-Titled-Tuesday-Blitz-February-27-2024"]
[Site "Chess.com"]
[Date "2024.02.27"]
[Round "10"]
[White "SilverSwords13"]
[Black "Alexei_Gubajdullin"]
[Result "0-1"]
[WhiteElo "2491"]
[BlackElo "2660"]
[TimeControl "180+1"]
[EndTime "15:56:25 PST"]
[Termination "Alexei_Gubajdullin won by resignation"]

1. e4 {[%clk 0:03:00.4]} 1... g6 {[%clk 0:02:50.3]} 2. d4 {[%clk 0:02:59.9]}
2... Bg7 {[%clk 0:02:50.1]} 3. Nc3 {[%clk 0:02:57.9]} 3... d6 {[%clk 0:02:47.5]}
4. Be3 {[%clk 0:02:58.4]} 4... a6 {[%clk 0:02:47]} 5. Qd2 {[%clk 0:02:58.1]}
5... Nd7 {[%clk 0:02:47]} 6. f3 {[%clk 0:02:46.5]} 6... b5 {[%clk 0:02:46.3]} 7.
h4 {[%clk 0:02:44]} 7... h6 {[%clk 0:02:45.6]} 8. h5 {[%clk 0:02:42.6]} 8... g5
{[%clk 0:02:45.3]} 9. Nge2 {[%clk 0:02:42.2]} 9... c5 {[%clk 0:02:40.3]} 10.
O-O-O {[%clk 0:02:40.9]} 10... cxd4 {[%clk 0:02:38.8]} 11. Bxd4 {[%clk
0:02:39.8]} 11... Ngf6 {[%clk 0:02:36.5]} 12. Ng3 {[%clk 0:02:39.3]} 12... e6
{[%clk 0:02:29.4]} 13. Kb1 {[%clk 0:02:31.8]} 13... O-O {[%clk 0:02:27]} 14. Be3
{[%clk 0:02:27]} 14... b4 {[%clk 0:02:24.3]} 15. Nce2 {[%clk 0:02:25.7]} 15...
d5 {[%clk 0:02:24.1]} 16. Qxb4 {[%clk 0:02:20.5]} 16... Rb8 {[%clk 0:02:20.3]}
17. Qd6 {[%clk 0:02:12.5]} 17... Rxb2+ {[%clk 0:02:18]} 18. Kc1 {[%clk
0:02:07.7]} 18... Rxa2 {[%clk 0:02:14.6]} 19. exd5 {[%clk 0:02:04.3]} 19... Qa5
{[%clk 0:02:03.2]} 20. Bd4 {[%clk 0:02:03.7]} 20... Nxd5 {[%clk 0:01:52.1]} 21.
Bxg7 {[%clk 0:02:01.1]} 21... Kxg7 {[%clk 0:01:51.7]} 22. c3 {[%clk 0:01:32.6]}
22... Nc5 {[%clk 0:01:32.7]} 23. Nf5+ {[%clk 0:01:13.2]} 23... exf5 {[%clk
0:01:30.5]} 24. Rxd5 {[%clk 0:01:12.1]} 24... Qa3+ {[%clk 0:01:03.6]} 25. Kd1
{[%clk 0:01:07.5]} 25... Ra1+ {[%clk 0:00:53]} 26. Kd2 {[%clk 0:01:07.9]} 26...
Qb2+ {[%clk 0:00:44.8]} 27. Ke3 {[%clk 0:01:08.2]} 27... Re8+ {[%clk 0:00:44.5]}
28. Kf2 {[%clk 0:01:05.4]} 28... Ra2 {[%clk 0:00:42.3]} 29. Re5 {[%clk
0:00:28.7]} 29... Nd3+ {[%clk 0:00:27.8]} 30. Qxd3 {[%clk 0:00:28.2]} 30... Rxe5
{[%clk 0:00:27.5]} 31. Qd4 {[%clk 0:00:28]} 31... f6 {[%clk 0:00:27.4]} 32. Rg1
{[%clk 0:00:18.7]} 32... Rxe2+ {[%clk 0:00:23.7]} 33. Bxe2 {[%clk 0:00:18.8]}
33... Qxe2+ {[%clk 0:00:24.1]} 34. Kg3 {[%clk 0:00:19.5]} 34... Qe5+ {[%clk
0:00:24]} 35. Qxe5 {[%clk 0:00:19.7]} 35... fxe5 {[%clk 0:00:24]} 36. Re1 {[%clk
0:00:18.8]} 36... f4+ {[%clk 0:00:23.8]} 37. Kh2 {[%clk 0:00:18.3]} 37... Kf6
{[%clk 0:00:22.8]} 38. Rd1 {[%clk 0:00:19]} 38... g4 {[%clk 0:00:20.8]} 39. Rd6+
{[%clk 0:00:18.1]} 39... Be6 {[%clk 0:00:20.4]} 40. fxg4 {[%clk 0:00:18.2]}
40... f3 {[%clk 0:00:20.8]} 41. Kg3 {[%clk 0:00:18]} 41... fxg2 {[%clk
0:00:19.1]} 42. Kh2 {[%clk 0:00:18.7]} 42... e4 {[%clk 0:00:18.2]} 43. g5+
{[%clk 0:00:18.4]} 43... hxg5 {[%clk 0:00:18.1]} 44. h6 {[%clk 0:00:18.9]} 44...
e3 {[%clk 0:00:10.1]} 45. Rxe6+ {[%clk 0:00:13.6]} 45... Kxe6 {[%clk 0:00:08.8]}
46. h7 {[%clk 0:00:14.3]} 46... e2 {[%clk 0:00:07.9]} 47. h8=Q {[%clk
0:00:10.6]} 47... g1=Q+ {[%clk 0:00:07.9]} 48. Kh3 {[%clk 0:00:11.3]} 48... Qh1+
{[%clk 0:00:07.9]} 49. Kg4 {[%clk 0:00:11.8]} 49... Qxh8 {[%clk 0:00:07.7]} 0-1

[Event "Late-Titled-Tuesday-Blitz-February-27-2024"]
[Site "Chess.com"]
[Date "2024.02.27"]
[Round "10"]
[White "Nemsko"]
[Black "DonMicheleCorleone"]
[Result "1-0"]
[WhiteElo "2416"]
[BlackElo "2508"]
[TimeControl "180+1"]
[EndTime "15:56:25 PST"]
[Termination "Nemsko won by resignation"]

1. e4 {[%clk 0:03:00.9]} 1... e6 {[%clk 0:03:00.5]} 2. d4 {[%clk 0:03:00.4]}
2... d5 {[%clk 0:03:00.9]} 3. Nc3 {[%clk 0:03:00.1]} 3... Bb4 {[%clk 0:03:00.3]}
4. e5 {[%clk 0:03:00.2]} 4... Bxc3+ {[%clk 0:03:00.9]} 5. bxc3 {[%clk
0:03:00.2]} 5... c5 {[%clk 0:03:01.6]} 6. h4 {[%clk 0:02:55.7]} 6... Qa5 {[%clk
0:02:58.8]} 7. Bd2 {[%clk 0:02:54.6]} 7... Qa4 {[%clk 0:02:58.1]} 8. Nf3 {[%clk
0:02:54.2]} 8... Ne7 {[%clk 0:02:57]} 9. h5 {[%clk 0:02:54.3]} 9... h6 {[%clk
0:02:56.3]} 10. Rh4 {[%clk 0:02:53.8]} 10... c4 {[%clk 0:02:50.2]} 11. Rf4
{[%clk 0:02:53.8]} 11... Nbc6 {[%clk 0:02:48.9]} 12. Nh4 {[%clk 0:02:48.3]}
12... Bd7 {[%clk 0:02:48.5]} 13. a3 {[%clk 0:02:39.7]} 13... Rf8 {[%clk
0:02:42.8]} 14. Qg4 {[%clk 0:02:30.3]} 14... O-O-O {[%clk 0:02:33.1]} 15. Kd1
{[%clk 0:02:25.4]} 15... g5 {[%clk 0:02:30]} 16. hxg6 {[%clk 0:02:24.9]} 16...
fxg6 {[%clk 0:02:28.3]} 17. Nxg6 {[%clk 0:02:18.9]} 17... Rg8 {[%clk 0:02:22.3]}
18. Rf6 {[%clk 0:02:15.8]} 18... Nf5 {[%clk 0:02:03.8]} 19. Qh5 {[%clk
0:02:03.1]} 19... Rg7 {[%clk 0:01:47.2]} 20. g4 {[%clk 0:01:58.3]} 20... Nfxd4
{[%clk 0:01:47.4]} 21. cxd4 {[%clk 0:01:55.9]} 21... Nxd4 {[%clk 0:01:48]} 22.
Rc1 {[%clk 0:01:53.6]} 22... Qxa3 {[%clk 0:01:47.5]} 23. Qxh6 {[%clk 0:01:37.5]}
23... Rdg8 {[%clk 0:01:41.9]} 24. Qe3 {[%clk 0:01:27]} 24... Nxc2 {[%clk
0:01:20.3]} 25. Rxc2 {[%clk 0:01:24]} 25... Qxe3 {[%clk 0:01:18.5]} 26. Bxe3
{[%clk 0:01:17.3]} 26... Rxg6 {[%clk 0:01:19]} 27. g5 {[%clk 0:01:15.9]} 27...
b6 {[%clk 0:01:15.4]} 28. Be2 {[%clk 0:01:13]} 28... Kb7 {[%clk 0:00:57]} 29.
Bh5 {[%clk 0:01:10.5]} 29... R6g7 {[%clk 0:00:57.2]} 30. g6 {[%clk 0:01:06.3]}
30... Kc6 {[%clk 0:00:45.6]} 31. Bh6 {[%clk 0:01:03.7]} 31... b5 {[%clk
0:00:35.7]} 32. Bxg7 {[%clk 0:01:03.6]} 32... Rxg7 {[%clk 0:00:36.6]} 33. Rf7
{[%clk 0:01:03.6]} 33... Rg8 {[%clk 0:00:37.1]} 34. g7 {[%clk 0:01:01.6]} 34...
Be8 {[%clk 0:00:37.4]} 35. Rxa7 {[%clk 0:00:43.6]} 35... Bxh5+ {[%clk
0:00:35.3]} 36. Kc1 {[%clk 0:00:44.3]} 36... d4 {[%clk 0:00:20.2]} 37. f4 {[%clk
0:00:43.8]} 37... d3 {[%clk 0:00:15.4]} 38. Rh2 {[%clk 0:00:44.1]} 38... c3
{[%clk 0:00:06.2]} 39. Rxh5 {[%clk 0:00:43.1]} 39... b4 {[%clk 0:00:05.7]} 40.
Rh3 {[%clk 0:00:37.4]} 40... d2+ {[%clk 0:00:05.3]} 41. Kc2 {[%clk 0:00:27.5]}
41... Kb5 {[%clk 0:00:05.8]} 42. Rd3 {[%clk 0:00:21.2]} 42... Kc4 {[%clk
0:00:05.1]} 43. Rc7+ {[%clk 0:00:21.1]} 43... Kb5 {[%clk 0:00:05.7]} 44. Rd4
{[%clk 0:00:15.4]} 44... Ka4 {[%clk 0:00:05.5]} 45. Ra7+ {[%clk 0:00:14.7]}
45... Kb5 {[%clk 0:00:05.9]} 46. Rb7+ {[%clk 0:00:15.2]} 46... Kc5 {[%clk
0:00:06.5]} 47. Rdxb4 {[%clk 0:00:13.4]} 47... Ra8 {[%clk 0:00:04.3]} 48. R7b5+
{[%clk 0:00:11.8]} 48... Kc6 {[%clk 0:00:04.4]} 49. Rb1 {[%clk 0:00:10.6]} 49...
Ra2+ {[%clk 0:00:03.1]} 50. Kxc3 {[%clk 0:00:09.8]} 1-0

[Event "Late-Titled-Tuesday-Blitz-February-27-2024"]
[Site "Chess.com"]
[Date "2024.02.27"]
[Round "10"]
[White "PattyCastillo"]
[Black "Jahonas"]
[Result "0-1"]
[WhiteElo "2011"]
[BlackElo "2374"]
[TimeControl "180+1"]
[EndTime "15:56:27 PST"]
[Termination "Jahonas won by resignation"]

1. e4 {[%clk 0:03:00]} 1... c6 {[%clk 0:02:59.8]} 2. d4 {[%clk 0:02:59.4]} 2...
d5 {[%clk 0:03:00.2]} 3. exd5 {[%clk 0:03:00.3]} 3... cxd5 {[%clk 0:03:00.3]} 4.
Nf3 {[%clk 0:03:01.2]} 4... Nf6 {[%clk 0:03:00.8]} 5. Bd3 {[%clk 0:03:02.1]}
5... Nc6 {[%clk 0:03:01.2]} 6. c3 {[%clk 0:03:01.7]} 6... Bg4 {[%clk 0:03:01]}
7. Bg5 {[%clk 0:03:01.9]} 7... e6 {[%clk 0:03:00]} 8. Nbd2 {[%clk 0:03:01.8]}
8... Be7 {[%clk 0:03:00]} 9. Qb1 {[%clk 0:03:00]} 9... h6 {[%clk 0:02:58.7]} 10.
Bh4 {[%clk 0:03:00.3]} 10... Nd7 {[%clk 0:02:49.7]} 11. Bxe7 {[%clk 0:02:55.5]}
11... Qxe7 {[%clk 0:02:48.9]} 12. O-O {[%clk 0:02:56.4]} 12... h5 {[%clk
0:02:42.9]} 13. Re1 {[%clk 0:02:53.5]} 13... h4 {[%clk 0:02:42.2]} 14. h3 {[%clk
0:02:53.9]} 14... Bxf3 {[%clk 0:02:39.6]} 15. Nxf3 {[%clk 0:02:54.8]} 15... g5
{[%clk 0:02:38.3]} 16. Nh2 {[%clk 0:02:53.3]} 16... Nf6 {[%clk 0:02:37.3]} 17.
Qd1 {[%clk 0:02:42.9]} 17... g4 {[%clk 0:02:26]} 18. Nxg4 {[%clk 0:02:41.3]}
18... O-O-O {[%clk 0:02:24.6]} 19. Ne5 {[%clk 0:02:37.4]} 19... Nxe5 {[%clk
0:02:13.4]} 20. Rxe5 {[%clk 0:02:38.3]} 20... Rdg8 {[%clk 0:02:08.3]} 21. Qf3
{[%clk 0:02:32.9]} 21... Nd7 {[%clk 0:02:05]} 22. Re3 {[%clk 0:02:29.6]} 22...
Rg5 {[%clk 0:02:01.1]} 23. Rae1 {[%clk 0:02:27.1]} 23... Rhg8 {[%clk 0:01:59.3]}
24. Kh1 {[%clk 0:02:24.5]} 24... Qd6 {[%clk 0:01:50.6]} 25. b4 {[%clk
0:01:58.2]} 25... R8g7 {[%clk 0:01:48.6]} 26. Bf1 {[%clk 0:01:57.2]} 26... Rf5
{[%clk 0:01:39.2]} 27. Qe2 {[%clk 0:01:47]} 27... Nf6 {[%clk 0:01:37.5]} 28. f3
{[%clk 0:01:42.8]} 28... Nh5 {[%clk 0:01:34.5]} 29. Qd2 {[%clk 0:01:36.4]} 29...
Qg3 {[%clk 0:01:22.2]} 30. c4 {[%clk 0:01:29.3]} 30... dxc4 {[%clk 0:01:09.8]}
31. Bxc4 {[%clk 0:01:21.1]} 31... Nf4 {[%clk 0:01:09.2]} 32. Bd3 {[%clk
0:01:20.7]} 32... Nxg2 {[%clk 0:01:04.7]} 33. Bxf5 {[%clk 0:01:01.2]} 33... Nxe1
{[%clk 0:00:44.2]} 34. Bg4 {[%clk 0:00:39.6]} 34... f5 {[%clk 0:00:20.6]} 35.
Qxe1 {[%clk 0:00:33]} 35... Qxe1+ {[%clk 0:00:17.9]} 36. Rxe1 {[%clk 0:00:33]}
36... fxg4 {[%clk 0:00:18.3]} 37. fxg4 {[%clk 0:00:33.4]} 37... Kd7 {[%clk
0:00:18.5]} 38. Kg2 {[%clk 0:00:32.7]} 38... Kd6 {[%clk 0:00:16.2]} 39. Re5
{[%clk 0:00:32.7]} 39... Rc7 {[%clk 0:00:15.9]} 40. Rh5 {[%clk 0:00:29.5]} 40...
Rc2+ {[%clk 0:00:15.6]} 41. Kf3 {[%clk 0:00:28.1]} 41... Rxa2 {[%clk 0:00:15.3]}
42. Rxh4 {[%clk 0:00:28.2]} 42... Rb2 {[%clk 0:00:14.8]} 43. g5 {[%clk
0:00:27.8]} 43... Rxb4 {[%clk 0:00:14.1]} 44. g6 {[%clk 0:00:27.8]} 44... Ke7
{[%clk 0:00:14.3]} 45. Rf4 {[%clk 0:00:27.8]} 45... Rb1 {[%clk 0:00:13.5]} 46.
g7 {[%clk 0:00:26.6]} 46... Rf1+ {[%clk 0:00:13]} 47. Ke4 {[%clk 0:00:24.4]}
47... Rxf4+ {[%clk 0:00:13.2]} 48. Kxf4 {[%clk 0:00:25.3]} 48... Kf7 {[%clk
0:00:13.6]} 49. Ke5 {[%clk 0:00:26]} 49... a5 {[%clk 0:00:13.7]} 50. g8=Q+
{[%clk 0:00:25.2]} 50... Kxg8 {[%clk 0:00:13.7]} 51. Kxe6 {[%clk 0:00:26.1]}
51... a4 {[%clk 0:00:13.8]} 52. Ke7 {[%clk 0:00:24.2]} 52... a3 {[%clk
0:00:14.2]} 53. d5 {[%clk 0:00:25.1]} 53... a2 {[%clk 0:00:14.7]} 54. d6 {[%clk
0:00:26]} 54... a1=Q {[%clk 0:00:15.3]} 55. d7 {[%clk 0:00:26.7]} 55... Qe5+
{[%clk 0:00:15.8]} 56. Kd8 {[%clk 0:00:25.8]} 56... Kf7 {[%clk 0:00:16.2]} 57.
Kc8 {[%clk 0:00:25.8]} 57... Qe6 {[%clk 0:00:16.3]} 58. Kc7 {[%clk 0:00:25.6]}
58... Qc4+ {[%clk 0:00:15.6]} 59. Kb8 {[%clk 0:00:25.5]} 59... Ke7 {[%clk
0:00:15.5]} 0-1

[Event "Late-Titled-Tuesday-Blitz-February-27-2024"]
[Site "Chess.com"]
[Date "2024.02.27"]
[Round "10"]
[White "DraningWaterHi"]
[Black "adricalderon8"]
[Result "0-1"]
[WhiteElo "2250"]
[BlackElo "2510"]
[TimeControl "180+1"]
[EndTime "15:56:32 PST"]
[Termination "adricalderon8 won by resignation"]

1. d4 {[%clk 0:03:00.9]} 1... Nf6 {[%clk 0:02:59.5]} 2. c4 {[%clk 0:03:00.5]}
2... b6 {[%clk 0:02:58.4]} 3. Nc3 {[%clk 0:02:59.2]} 3... Bb7 {[%clk 0:02:57.9]}
4. Qc2 {[%clk 0:02:59.8]} 4... d5 {[%clk 0:02:57]} 5. cxd5 {[%clk 0:03:00.4]}
5... Nxd5 {[%clk 0:02:57.8]} 6. e4 {[%clk 0:03:01]} 6... Nxc3 {[%clk 0:02:58.5]}
7. bxc3 {[%clk 0:03:01.7]} 7... e5 {[%clk 0:02:59]} 8. Nf3 {[%clk 0:03:00.6]}
8... exd4 {[%clk 0:02:59]} 9. cxd4 {[%clk 0:03:01.5]} 9... Bb4+ {[%clk
0:02:58.3]} 10. Bd2 {[%clk 0:03:00.7]} 10... Bxd2+ {[%clk 0:02:57.7]} 11. Qxd2
{[%clk 0:03:00.7]} 11... Bxe4 {[%clk 0:02:56.5]} 12. Qe3 {[%clk 0:03:00.7]}
12... Qe7 {[%clk 0:02:56.4]} 13. Ne5 {[%clk 0:03:00.7]} 13... Bd5 {[%clk
0:02:53.2]} 14. Bd3 {[%clk 0:02:49]} 14... Qb4+ {[%clk 0:02:50.9]} 15. Qd2
{[%clk 0:02:43.3]} 15... Qxd2+ {[%clk 0:02:43.9]} 16. Kxd2 {[%clk 0:02:43.5]}
16... O-O {[%clk 0:02:44.6]} 17. Rac1 {[%clk 0:02:41.9]} 17... c6 {[%clk
0:02:35.4]} 18. f3 {[%clk 0:02:39.1]} 18... Rd8 {[%clk 0:02:33.5]} 19. Ke3
{[%clk 0:02:39]} 19... f6 {[%clk 0:02:30.2]} 20. Ng4 {[%clk 0:02:38.7]} 20...
Nd7 {[%clk 0:02:29.2]} 21. Rhd1 {[%clk 0:02:36.7]} 21... Nf8 {[%clk 0:02:29]}
22. a3 {[%clk 0:02:36.1]} 22... Re8+ {[%clk 0:02:27.6]} 23. Kf2 {[%clk
0:02:34.9]} 23... Rad8 {[%clk 0:02:27.7]} 24. Ba6 {[%clk 0:02:32.3]} 24... Re7
{[%clk 0:02:23.3]} 25. Ne3 {[%clk 0:02:31.4]} 25... Bb3 {[%clk 0:02:11.3]} 26.
Rd3 {[%clk 0:02:30.8]} 26... Ba4 {[%clk 0:01:55.5]} 27. Rd2 {[%clk 0:02:25.9]}
27... Ne6 {[%clk 0:01:52.4]} 28. d5 {[%clk 0:02:19.8]} 28... cxd5 {[%clk
0:01:51.1]} 29. Rxd5 {[%clk 0:02:20.4]} 29... Rxd5 {[%clk 0:01:49.5]} 30. Nxd5
{[%clk 0:02:21.3]} 30... Rd7 {[%clk 0:01:49.7]} 31. Bc8 {[%clk 0:02:19.8]} 31...
Rd6 {[%clk 0:01:46]} 32. Bxe6+ {[%clk 0:02:03.4]} 32... Rxe6 {[%clk 0:01:46.9]}
33. Rc8+ {[%clk 0:02:03.4]} 33... Re8 {[%clk 0:01:41.8]} 34. Rc7 {[%clk
0:02:02.6]} 34... Bb3 {[%clk 0:01:38.2]} 35. Ne7+ {[%clk 0:01:59]} 35... Kf8
{[%clk 0:01:37.5]} 36. Nf5 {[%clk 0:01:51.4]} 36... Re5 {[%clk 0:01:31.4]} 37.
Nd4 {[%clk 0:01:44.2]} 37... Bd1 {[%clk 0:01:11.7]} 38. Rxa7 {[%clk 0:01:43.6]}
38... Ra5 {[%clk 0:01:11.9]} 39. Ne6+ {[%clk 0:01:38.3]} 39... Ke8 {[%clk
0:01:07.6]} 40. Nxg7+ {[%clk 0:01:37.4]} 40... Kd8 {[%clk 0:01:08]} 41. Ne6+
{[%clk 0:01:32.7]} 41... Kc8 {[%clk 0:01:08.3]} 42. Rxa5 {[%clk 0:01:26.7]}
42... bxa5 {[%clk 0:01:08.6]} 43. Ke3 {[%clk 0:01:26.2]} 43... Kd7 {[%clk
0:01:08.6]} 44. Nd4 {[%clk 0:01:20.8]} 44... Kd6 {[%clk 0:01:07.1]} 45. Kd2
{[%clk 0:01:20.9]} 45... Ba4 {[%clk 0:01:06.2]} 46. Kc3 {[%clk 0:01:20.6]} 46...
Ke5 {[%clk 0:01:04.2]} 47. Nb3 {[%clk 0:01:18.7]} 47... Kf4 {[%clk 0:00:58.3]}
48. Nxa5 {[%clk 0:01:18.4]} 48... Ke3 {[%clk 0:00:58.9]} 49. Nb3 {[%clk
0:01:10.7]} 49... Kf2 {[%clk 0:00:57.5]} 50. Nd4 {[%clk 0:01:10.2]} 50... Bd7
{[%clk 0:00:57.6]} 51. g4 {[%clk 0:01:05.6]} 51... Ke3 {[%clk 0:00:56]} 52. h4
{[%clk 0:01:02.3]} 52... Ba4 {[%clk 0:00:41.5]} 53. h5 {[%clk 0:00:34.4]} 53...
Bd7 {[%clk 0:00:40.6]} 54. Kc4 {[%clk 0:00:29.4]} 54... Ba4 {[%clk 0:00:34]} 55.
Kc5 {[%clk 0:00:26.8]} 55... Bd1 {[%clk 0:00:33.7]} 56. h6 {[%clk 0:00:15.1]}
56... Ba4 {[%clk 0:00:30.5]} 57. Kd5 {[%clk 0:00:13.5]} 57... Bd1 {[%clk
0:00:30.1]} 58. Ke6 {[%clk 0:00:11.7]} 58... Kxd4 {[%clk 0:00:29.1]} 59. Kxf6
{[%clk 0:00:12.1]} 59... Bxf3 {[%clk 0:00:29.2]} 60. g5 {[%clk 0:00:12]} 60...
Be4 {[%clk 0:00:29.5]} 61. a4 {[%clk 0:00:10.8]} 61... Kc5 {[%clk 0:00:29.1]}
62. Ke5 {[%clk 0:00:09.9]} 62... Bg6 {[%clk 0:00:28.5]} 63. Kf6 {[%clk
0:00:07.2]} 63... Kb4 {[%clk 0:00:28.5]} 64. Ke5 {[%clk 0:00:08.1]} 64... Kxa4
{[%clk 0:00:28.8]} 65. Kf6 {[%clk 0:00:09]} 65... Kb4 {[%clk 0:00:29]} 66. Ke5
{[%clk 0:00:09.9]} 66... Kc5 {[%clk 0:00:29.6]} 67. Kf6 {[%clk 0:00:10.8]} 67...
Kd5 {[%clk 0:00:30]} 68. Ke7 {[%clk 0:00:09.7]} 68... Ke5 {[%clk 0:00:30.6]} 69.
Kf8 {[%clk 0:00:09.7]} 69... Kf5 {[%clk 0:00:31.5]} 0-1